[Event "*** Titled Tuesday Blitz"]
[Site "Chess.com"]
[Date "2021.02.02"]
[Round "9"]
[White "Noam_Vitenberg"]
[Black "CakeinSpace2002"]
[Result "1-0"]
[WhiteElo "2508"]
[BlackElo "2374"]
[TimeControl "180+1"]
[EndTime "11:43:41 PST"]
[Termination "Noam_Vitenberg won by resignation"]

1. Nf3 {[%clk 0:03:00.9]} 1... c5 {[%clk 0:02:59.6]} 2. g3 {[%clk 0:03:01.8]}
2... g6 {[%clk 0:02:59.4]} 3. Bg2 {[%clk 0:03:01.9]} 3... Bg7 {[%clk 0:03:00.3]}
4. O-O {[%clk 0:03:02.3]} 4... Nc6 {[%clk 0:03:01.2]} 5. e3 {[%clk 0:02:58.4]}
5... Nf6 {[%clk 0:03:00.1]} 6. d4 {[%clk 0:02:58.8]} 6... cxd4 {[%clk
0:03:00.5]} 7. exd4 {[%clk 0:02:59.7]} 7... d5 {[%clk 0:03:01.1]} 8. c3 {[%clk
0:02:55.3]} 8... O-O {[%clk 0:03:02]} 9. Bf4 {[%clk 0:02:55.9]} 9... Ne4 {[%clk
0:03:00.8]} 10. Nbd2 {[%clk 0:02:55.9]} 10... Bf5 {[%clk 0:02:59.5]} 11. Re1
{[%clk 0:02:55.9]} 11... Rc8 {[%clk 0:02:56.7]} 12. h3 {[%clk 0:02:52.7]} 12...
Nxd2 {[%clk 0:02:45.3]} 13. Qxd2 {[%clk 0:02:53.6]} 13... Be4 {[%clk 0:02:44.9]}
14. Bh6 {[%clk 0:02:43.7]} 14... e6 {[%clk 0:02:40.5]} 15. Qf4 {[%clk
0:02:38.8]} 15... Qf6 {[%clk 0:02:35.5]} 16. Qxf6 {[%clk 0:02:33.2]} 16... Bxf6
{[%clk 0:02:36.1]} 17. Bxf8 {[%clk 0:02:32.9]} 17... Kxf8 {[%clk 0:02:37]} 18.
Nd2 {[%clk 0:02:29.9]} 18... Bxg2 {[%clk 0:02:29.5]} 19. Kxg2 {[%clk 0:02:30.8]}
19... Na5 {[%clk 0:02:25.4]} 20. Rac1 {[%clk 0:02:29.2]} 20... b5 {[%clk
0:02:23.3]} 21. Re2 {[%clk 0:02:21.2]} 21... b4 {[%clk 0:02:18.8]} 22. Nb3
{[%clk 0:02:20.2]} 22... Nxb3 {[%clk 0:02:10.3]} 23. axb3 {[%clk 0:02:21.1]}
23... Bxd4 {[%clk 0:02:07.3]} 24. Rec2 {[%clk 0:02:18.4]} 24... bxc3 {[%clk
0:02:03.8]} 25. bxc3 {[%clk 0:02:19.3]} 25... Bb6 {[%clk 0:02:02.7]} 26. c4
{[%clk 0:02:15.4]} 26... dxc4 {[%clk 0:01:58.3]} 27. Rxc4 {[%clk 0:02:16.3]}
27... Rd8 {[%clk 0:01:55.7]} 28. Rc8 {[%clk 0:02:15.8]} 28... Rxc8 {[%clk
0:01:55.9]} 29. Rxc8+ {[%clk 0:02:15.6]} 29... Ke7 {[%clk 0:01:56.8]} 30. Kf3
{[%clk 0:02:15.2]} 30... h5 {[%clk 0:01:55.9]} 31. Ke2 {[%clk 0:02:14.4]} 31...
Kf6 {[%clk 0:01:55]} 32. f3 {[%clk 0:02:14]} 32... Ke5 {[%clk 0:01:53.2]} 33.
Kd3 {[%clk 0:02:13.8]} 33... g5 {[%clk 0:01:52.5]} 34. Rh8 {[%clk 0:02:07.1]}
34... Bf2 {[%clk 0:01:51.9]} 35. Rxh5 {[%clk 0:02:03.1]} 35... Bxg3 {[%clk
0:01:51.6]} 36. Rxg5+ {[%clk 0:02:03.1]} 36... Kf4 {[%clk 0:01:52.5]} 37. Rg7
{[%clk 0:02:03.3]} 37... f5 {[%clk 0:01:52.3]} 38. Ke2 {[%clk 0:01:51.8]} 38...
a5 {[%clk 0:01:48.9]} 39. Ra7 {[%clk 0:01:49.7]} 39... Bh2 {[%clk 0:01:47.5]}
40. Rxa5 {[%clk 0:01:28.8]} 40... Kg3 {[%clk 0:01:47.3]} 41. Ra6 {[%clk
0:01:29.2]} 41... e5 {[%clk 0:01:46.9]} 42. Rh6 {[%clk 0:01:28.5]} 1-0

[Event "*** Titled Tuesday Blitz"]
[Site "Chess.com"]
[Date "2021.02.02"]
[Round "9"]
[White "Machidon"]
[Black "Jadeit90"]
[Result "1-0"]
[WhiteElo "2565"]
[BlackElo "2426"]
[TimeControl "180+1"]
[EndTime "11:43:44 PST"]
[Termination "Machidon won by resignation"]

1. d4 {[%clk 0:02:51.9]} 1... g6 {[%clk 0:03:00.5]} 2. e4 {[%clk 0:02:50.9]}
2... Bg7 {[%clk 0:03:01.1]} 3. Nc3 {[%clk 0:02:49.3]} 3... c5 {[%clk 0:03:01.8]}
4. d5 {[%clk 0:02:49.3]} 4... d6 {[%clk 0:03:02.1]} 5. Nf3 {[%clk 0:02:48.2]}
5... Nf6 {[%clk 0:03:02.8]} 6. h3 {[%clk 0:02:48.1]} 6... O-O {[%clk 0:03:03.6]}
7. Be2 {[%clk 0:02:47.2]} 7... e6 {[%clk 0:03:04.3]} 8. a4 {[%clk 0:02:45.6]}
8... exd5 {[%clk 0:03:04.9]} 9. exd5 {[%clk 0:02:45.1]} 9... Na6 {[%clk
0:03:04.7]} 10. O-O {[%clk 0:02:42.5]} 10... Nc7 {[%clk 0:03:05.6]} 11. Bg5
{[%clk 0:02:39.6]} 11... h6 {[%clk 0:03:04.9]} 12. Bh4 {[%clk 0:02:39.2]} 12...
Rb8 {[%clk 0:03:05]} 13. Nd2 {[%clk 0:02:34]} 13... a6 {[%clk 0:03:03.8]} 14. a5
{[%clk 0:02:32.9]} 14... b5 {[%clk 0:03:03.9]} 15. axb6 {[%clk 0:02:33.8]} 15...
Rxb6 {[%clk 0:03:04.2]} 16. Nc4 {[%clk 0:02:34.3]} 16... Rb4 {[%clk 0:03:04.4]}
17. Ra2 {[%clk 0:02:22.7]} 17... Nb5 {[%clk 0:03:02]} 18. Bg3 {[%clk 0:02:16.6]}
18... Nxc3 {[%clk 0:02:14.1]} 19. bxc3 {[%clk 0:02:17.5]} 19... Rxc4 {[%clk
0:02:14.6]} 20. Bxc4 {[%clk 0:02:16.1]} 20... Ne4 {[%clk 0:02:15.1]} 21. Qd3
{[%clk 0:02:12.5]} 21... Nxc3 {[%clk 0:02:11.6]} 22. Ra3 {[%clk 0:02:05.6]}
22... Bf5 {[%clk 0:02:11.5]} 23. Qf3 {[%clk 0:01:54.1]} 23... Ne4 {[%clk
0:02:10.3]} 24. Bf4 {[%clk 0:01:36.3]} 24... Qf6 {[%clk 0:01:58.3]} 25. Rxa6
{[%clk 0:01:28.2]} 25... g5 {[%clk 0:01:57.2]} 26. Be3 {[%clk 0:01:18.5]} 26...
Qg6 {[%clk 0:01:57.4]} 27. g4 {[%clk 0:01:12.7]} 27... Bc8 {[%clk 0:01:55.7]}
28. Ra8 {[%clk 0:01:10.3]} 28... Be5 {[%clk 0:01:49.4]} 29. Bd3 {[%clk
0:01:08.6]} 29... f5 {[%clk 0:01:48.6]} 30. Rxc8 {[%clk 0:01:03.5]} 30... Rxc8
{[%clk 0:01:47]} 31. gxf5 {[%clk 0:01:03.7]} 31... Qf6 {[%clk 0:01:36.6]} 32.
Bxe4 {[%clk 0:01:03.2]} 1-0

[Event "*** Titled Tuesday Blitz"]
[Site "Chess.com"]
[Date "2021.02.02"]
[Round "9"]
[White "ruvat"]
[Black "marvinguevara"]
[Result "1-0"]
[WhiteElo "2327"]
[BlackElo "2146"]
[TimeControl "180+1"]
[EndTime "11:43:47 PST"]
[Termination "ruvat won by checkmate"]

1. d4 {[%clk 0:03:00.9]} 1... f5 {[%clk 0:02:58.7]} 2. Nc3 {[%clk 0:02:59.9]}
2... Nf6 {[%clk 0:02:58.5]} 3. Bg5 {[%clk 0:02:58.8]} 3... Ne4 {[%clk
0:02:54.4]} 4. Nxe4 {[%clk 0:02:56.6]} 4... fxe4 {[%clk 0:02:54.8]} 5. e3 {[%clk
0:02:53]} 5... d5 {[%clk 0:02:53.2]} 6. c4 {[%clk 0:02:43.1]} 6... c6 {[%clk
0:02:46.6]} 7. Ne2 {[%clk 0:02:42.6]} 7... Qa5+ {[%clk 0:02:23.7]} 8. Nc3 {[%clk
0:02:41.7]} 8... e6 {[%clk 0:02:22.2]} 9. a3 {[%clk 0:02:38.4]} 9... dxc4 {[%clk
0:02:08.8]} 10. h4 {[%clk 0:02:37.6]} 10... b5 {[%clk 0:01:57.9]} 11. Rc1 {[%clk
0:02:22.5]} 11... Nd7 {[%clk 0:01:49.6]} 12. Qh5+ {[%clk 0:02:18.4]} 12... g6
{[%clk 0:01:48.7]} 13. Qg4 {[%clk 0:02:18.3]} 13... Nb6 {[%clk 0:01:39.6]} 14.
h5 {[%clk 0:02:11.3]} 14... Rg8 {[%clk 0:01:22.7]} 15. Qxe4 {[%clk 0:02:08]}
15... Nd5 {[%clk 0:01:18.9]} 16. hxg6 {[%clk 0:02:05.9]} 16... hxg6 {[%clk
0:01:17.7]} 17. Be2 {[%clk 0:01:48.4]} 17... Bxa3 {[%clk 0:01:12.7]} 18. Bg4
{[%clk 0:01:27.8]} 18... Bxb2 {[%clk 0:01:09.2]} 19. Bxe6 {[%clk 0:01:25.7]}
19... Bxc3+ {[%clk 0:01:02.1]} 20. Kf1 {[%clk 0:01:24.5]} 20... Bxe6 {[%clk
0:00:56.7]} 21. Qxe6+ {[%clk 0:01:23.2]} 21... Kf8 {[%clk 0:00:56.7]} 22. Rh7
{[%clk 0:01:23.1]} 22... Rg7 {[%clk 0:00:48.1]} 23. Rh8+ {[%clk 0:01:21.2]}
23... Rg8 {[%clk 0:00:46.4]} 24. Rxg8# {[%clk 0:01:20.7]} 1-0

[Event "*** Titled Tuesday Blitz"]
[Site "Chess.com"]
[Date "2021.02.02"]
[Round "9"]
[White "CraiggoryC"]
[Black "glebus008"]
[Result "0-1"]
[WhiteElo "2120"]
[BlackElo "2264"]
[TimeControl "180+1"]
[EndTime "11:43:52 PST"]
[Termination "glebus008 won by resignation"]

1. e4 {[%clk 0:03:00.9]} 1... e6 {[%clk 0:02:57.5]} 2. d4 {[%clk 0:03:00.7]}
2... d5 {[%clk 0:02:57.4]} 3. e5 {[%clk 0:03:01.4]} 3... c5 {[%clk 0:02:57]} 4.
c3 {[%clk 0:03:02.1]} 4... Nc6 {[%clk 0:02:56.7]} 5. Nf3 {[%clk 0:03:02.8]} 5...
Bd7 {[%clk 0:02:56.8]} 6. Be2 {[%clk 0:03:02.4]} 6... Nge7 {[%clk 0:02:46]} 7.
O-O {[%clk 0:03:01.7]} 7... Nf5 {[%clk 0:02:43.4]} 8. dxc5 {[%clk 0:02:55]} 8...
Bxc5 {[%clk 0:02:39.9]} 9. b4 {[%clk 0:02:54.7]} 9... Be7 {[%clk 0:02:31]} 10.
Bd3 {[%clk 0:02:53.5]} 10... Nh4 {[%clk 0:02:26.9]} 11. Nbd2 {[%clk 0:02:48.6]}
11... Nxf3+ {[%clk 0:02:24.4]} 12. Nxf3 {[%clk 0:02:46.8]} 12... O-O {[%clk
0:02:22.9]} 13. Re1 {[%clk 0:02:28.7]} 13... Rc8 {[%clk 0:02:21.7]} 14. Re3
{[%clk 0:02:06.7]} 14... f6 {[%clk 0:02:20.7]} 15. Bxh7+ {[%clk 0:01:58.8]}
15... Kxh7 {[%clk 0:02:17.5]} 16. Ng5+ {[%clk 0:01:56.9]} 16... fxg5 {[%clk
0:02:16.1]} 17. Rh3+ {[%clk 0:01:42.6]} 17... Kg8 {[%clk 0:02:14.3]} 18. Qh5
{[%clk 0:01:43.1]} 18... Nxe5 {[%clk 0:02:05.9]} 19. Qh7+ {[%clk 0:01:24.6]}
19... Kf7 {[%clk 0:02:05.1]} 20. Qh5+ {[%clk 0:01:08.6]} 20... Kg8 {[%clk
0:01:56.9]} 21. Qh7+ {[%clk 0:01:06.3]} 21... Kf7 {[%clk 0:01:56.2]} 22. Qh5+
{[%clk 0:01:06.4]} 22... Ng6 {[%clk 0:01:54.8]} 23. Rf3+ {[%clk 0:00:53.4]}
23... Bf6 {[%clk 0:01:48.4]} 24. Bxg5 {[%clk 0:00:52.4]} 24... Rh8 {[%clk
0:01:44.3]} 25. Bxf6 {[%clk 0:00:41.7]} 25... gxf6 {[%clk 0:01:36.6]} 0-1

[Event "*** Titled Tuesday Blitz"]
[Site "Chess.com"]
[Date "2021.02.02"]
[Round "9"]
[White "Ze-Pequeno"]
[Black "tteshan"]
[Result "1-0"]
[WhiteElo "2230"]
[BlackElo "2313"]
[TimeControl "180+1"]
[EndTime "11:44:07 PST"]
[Termination "Ze-Pequeno won by resignation"]

1. e4 {[%clk 0:03:00.9]} 1... d5 {[%clk 0:02:51.1]} 2. exd5 {[%clk 0:03:00.2]}
2... Qxd5 {[%clk 0:02:52]} 3. Nc3 {[%clk 0:02:59.7]} 3... Qa5 {[%clk 0:02:51.5]}
4. d4 {[%clk 0:02:59.7]} 4... c6 {[%clk 0:02:51.4]} 5. Nf3 {[%clk 0:02:59.4]}
5... Nf6 {[%clk 0:02:51]} 6. Bc4 {[%clk 0:02:58.6]} 6... Bg4 {[%clk 0:02:50.6]}
7. h3 {[%clk 0:02:57.9]} 7... Bh5 {[%clk 0:02:44.3]} 8. g4 {[%clk 0:02:50.7]}
8... Bg6 {[%clk 0:02:43.9]} 9. Bd2 {[%clk 0:02:45.2]} 9... Qc7 {[%clk
0:02:43.5]} 10. Ne5 {[%clk 0:02:41.4]} 10... e6 {[%clk 0:02:43.6]} 11. h4 {[%clk
0:02:38.5]} 11... Be4 {[%clk 0:02:43.4]} 12. Nxe4 {[%clk 0:02:36.6]} 12... Nxe4
{[%clk 0:02:44.3]} 13. Be3 {[%clk 0:02:31.4]} 13... Nd7 {[%clk 0:02:43.9]} 14.
Nxd7 {[%clk 0:02:17.3]} 14... Qxd7 {[%clk 0:02:43]} 15. Qf3 {[%clk 0:02:12.8]}
15... Nf6 {[%clk 0:02:41.3]} 16. O-O-O {[%clk 0:02:04.7]} 16... O-O-O {[%clk
0:02:39]} 17. Kb1 {[%clk 0:01:59.7]} 17... Bd6 {[%clk 0:02:36.8]} 18. Bb3 {[%clk
0:01:47.9]} 18... Rhe8 {[%clk 0:02:19.5]} 19. g5 {[%clk 0:01:35.2]} 19... Nd5
{[%clk 0:02:19.1]} 20. Bd2 {[%clk 0:01:34.7]} 20... Qc7 {[%clk 0:02:15.8]} 21.
c4 {[%clk 0:01:31.3]} 21... Ne7 {[%clk 0:01:35.9]} 22. c5 {[%clk 0:01:30.7]}
22... Bh2 {[%clk 0:01:28.9]} 23. Qxf7 {[%clk 0:01:21.8]} 23... Nf5 {[%clk
0:01:10.8]} 24. Bxe6+ {[%clk 0:01:19.1]} 24... Kb8 {[%clk 0:00:54.5]} 25. Qxc7+
{[%clk 0:01:13.8]} 25... Bxc7 {[%clk 0:00:53.5]} 26. Bxf5 {[%clk 0:01:14.7]}
26... Rxd4 {[%clk 0:00:52.3]} 27. Be3 {[%clk 0:01:13.3]} 1-0

[Event "*** Titled Tuesday Blitz"]
[Site "Chess.com"]
[Date "2021.02.02"]
[Round "9"]
[White "barriochess"]
[Black "FearNoEvil12"]
[Result "1-0"]
[WhiteElo "2418"]
[BlackElo "2186"]
[TimeControl "180+1"]
[EndTime "11:44:07 PST"]
[Termination "barriochess won by resignation"]

1. e4 {[%clk 0:03:00.9]} 1... a6 {[%clk 0:02:58.1]} 2. d4 {[%clk 0:03:00.3]}
2... b5 {[%clk 0:02:57.9]} 3. Bd3 {[%clk 0:03:00]} 3... Bb7 {[%clk 0:02:58.2]}
4. Nf3 {[%clk 0:03:00]} 4... e6 {[%clk 0:02:58.5]} 5. O-O {[%clk 0:02:59.9]}
5... Nf6 {[%clk 0:02:58.9]} 6. Re1 {[%clk 0:03:00.4]} 6... d6 {[%clk 0:02:58.4]}
7. a4 {[%clk 0:02:57.7]} 7... b4 {[%clk 0:02:56.9]} 8. Nbd2 {[%clk 0:02:56.7]}
8... Nbd7 {[%clk 0:02:56.4]} 9. Nf1 {[%clk 0:02:56.7]} 9... h6 {[%clk
0:02:54.3]} 10. Ng3 {[%clk 0:02:57.1]} 10... g5 {[%clk 0:02:53.9]} 11. d5 {[%clk
0:02:52]} 11... Rg8 {[%clk 0:02:48.2]} 12. Nd4 {[%clk 0:02:50.7]} 12... e5
{[%clk 0:02:45.4]} 13. Ndf5 {[%clk 0:02:49.1]} 13... Bc8 {[%clk 0:02:43.1]} 14.
a5 {[%clk 0:02:43.7]} 14... Nc5 {[%clk 0:02:41.8]} 15. Bd2 {[%clk 0:02:40.4]}
15... Rb8 {[%clk 0:02:39.8]} 16. Qf3 {[%clk 0:02:31.9]} 16... g4 {[%clk
0:02:37.8]} 17. Qe2 {[%clk 0:02:30.5]} 17... h5 {[%clk 0:02:37.3]} 18. Nf1
{[%clk 0:02:13.8]} 18... Bxf5 {[%clk 0:02:35.1]} 19. exf5 {[%clk 0:02:14.1]}
19... Nxd5 {[%clk 0:02:34.2]} 20. Bc4 {[%clk 0:02:13.5]} 20... c6 {[%clk
0:02:26.1]} 21. Ng3 {[%clk 0:02:05.4]} 21... h4 {[%clk 0:02:22.8]} 22. Ne4
{[%clk 0:02:05.3]} 22... Nxe4 {[%clk 0:02:19.9]} 23. Qxe4 {[%clk 0:02:06.2]}
23... Qf6 {[%clk 0:02:02.1]} 24. Bxd5 {[%clk 0:02:03.6]} 24... cxd5 {[%clk
0:02:00.9]} 25. Qxd5 {[%clk 0:02:01]} 25... Qxf5 {[%clk 0:02:00.3]} 26. c3
{[%clk 0:01:43.7]} 26... g3 {[%clk 0:01:56.4]} 27. fxg3 {[%clk 0:01:39.4]} 27...
hxg3 {[%clk 0:01:55.7]} 28. Rf1 {[%clk 0:01:39.8]} 28... gxh2+ {[%clk
0:01:53.9]} 29. Kh1 {[%clk 0:01:40]} 29... Qg6 {[%clk 0:01:52]} 30. Qc6+ {[%clk
0:01:39.5]} 30... Ke7 {[%clk 0:01:46.7]} 31. cxb4 {[%clk 0:01:31.3]} 31... Rc8
{[%clk 0:01:37.4]} 32. Qb7+ {[%clk 0:01:27.5]} 32... Kd8 {[%clk 0:01:36.5]} 33.
Be3 {[%clk 0:01:26.9]} 33... Qe6 {[%clk 0:01:16.7]} 34. Bb6+ {[%clk 0:01:26.5]}
34... Ke8 {[%clk 0:01:15.9]} 35. Rac1 {[%clk 0:01:24.5]} 35... Rxc1 {[%clk
0:01:02.4]} 36. Rxc1 {[%clk 0:01:25.4]} 1-0

[Event "*** Titled Tuesday Blitz"]
[Site "Chess.com"]
[Date "2021.02.02"]
[Round "9"]
[White "isla88"]
[Black "Carnivoras"]
[Result "0-1"]
[WhiteElo "2309"]
[BlackElo "2566"]
[TimeControl "180+1"]
[EndTime "11:44:10 PST"]
[Termination "Carnivoras won by resignation"]

1. d4 {[%clk 0:03:00.9]} 1... d5 {[%clk 0:02:57.1]} 2. Nc3 {[%clk 0:02:59.8]}
2... Nf6 {[%clk 0:02:56.1]} 3. Bf4 {[%clk 0:02:59.9]} 3... e6 {[%clk 0:02:56.4]}
4. e3 {[%clk 0:02:58.2]} 4... Bd6 {[%clk 0:02:57]} 5. Nf3 {[%clk 0:02:54.9]}
5... O-O {[%clk 0:02:56.1]} 6. Ne5 {[%clk 0:02:54.4]} 6... c5 {[%clk 0:02:54.4]}
7. dxc5 {[%clk 0:02:51.5]} 7... Bxc5 {[%clk 0:02:44.8]} 8. Bd3 {[%clk
0:02:51.7]} 8... Nc6 {[%clk 0:02:44]} 9. Nxc6 {[%clk 0:02:45.7]} 9... bxc6
{[%clk 0:02:35.3]} 10. Bg5 {[%clk 0:02:46.2]} 10... h6 {[%clk 0:02:23.3]} 11.
Bh4 {[%clk 0:02:40.8]} 11... Rb8 {[%clk 0:02:02.2]} 12. Rb1 {[%clk 0:02:32.9]}
12... e5 {[%clk 0:01:25.7]} 13. e4 {[%clk 0:02:32.5]} 13... Be6 {[%clk 0:01:12]}
14. O-O {[%clk 0:02:28.1]} 14... d4 {[%clk 0:01:10.3]} 15. Na4 {[%clk 0:02:26]}
15... Be7 {[%clk 0:01:07.6]} 16. b3 {[%clk 0:02:25]} 16... Nd7 {[%clk
0:01:07.7]} 17. Bg3 {[%clk 0:02:19.7]} 17... Bh4 {[%clk 0:00:55.5]} 18. Qh5
{[%clk 0:02:09.5]} 18... Bxg3 {[%clk 0:00:38.8]} 19. fxg3 {[%clk 0:02:10.4]}
19... Qg5 {[%clk 0:00:36.9]} 20. Qxg5 {[%clk 0:02:05.3]} 20... hxg5 {[%clk
0:00:28.4]} 21. Nb2 {[%clk 0:02:06.2]} 21... f6 {[%clk 0:00:27.8]} 22. Bc4
{[%clk 0:02:06.2]} 22... Bxc4 {[%clk 0:00:27.5]} 23. Nxc4 {[%clk 0:02:07.1]}
23... Nb6 {[%clk 0:00:28.2]} 24. Na5 {[%clk 0:02:06.4]} 24... Rbc8 {[%clk
0:00:28.4]} 25. Rbc1 {[%clk 0:02:03.9]} 25... c5 {[%clk 0:00:28.7]} 26. c3
{[%clk 0:02:00.2]} 26... Rfd8 {[%clk 0:00:27.5]} 27. Rfd1 {[%clk 0:02:00.4]}
27... Rd7 {[%clk 0:00:26.8]} 28. Kf2 {[%clk 0:01:52.9]} 28... Kf7 {[%clk
0:00:26.7]} 29. Ke2 {[%clk 0:01:53.1]} 29... Ke6 {[%clk 0:00:27]} 30. g4 {[%clk
0:01:47.2]} 30... Rdc7 {[%clk 0:00:23.9]} 31. cxd4 {[%clk 0:01:43.6]} 31... cxd4
{[%clk 0:00:24.8]} 32. Kd3 {[%clk 0:01:44]} 32... Rxc1 {[%clk 0:00:24.1]} 0-1

[Event "*** Titled Tuesday Blitz"]
[Site "Chess.com"]
[Date "2021.02.02"]
[Round "9"]
[White "SanchezKelvin"]
[Black "northridgehawk"]
[Result "0-1"]
[WhiteElo "2455"]
[BlackElo "2331"]
[TimeControl "180+1"]
[EndTime "11:44:25 PST"]
[Termination "northridgehawk won on time"]

1. e4 {[%clk 0:02:58.6]} 1... e5 {[%clk 0:02:43.8]} 2. Nf3 {[%clk 0:02:35.2]}
2... Nc6 {[%clk 0:02:34.5]} 3. Bc4 {[%clk 0:02:35.5]} 3... Nf6 {[%clk
0:02:30.2]} 4. d3 {[%clk 0:02:35]} 4... Bc5 {[%clk 0:02:30.1]} 5. Kd2 {[%clk
0:02:33.8]} 5... O-O {[%clk 0:02:27.2]} 6. Ke1 {[%clk 0:02:27.2]} 6... d5 {[%clk
0:02:26.6]} 7. exd5 {[%clk 0:02:26.6]} 7... Nxd5 {[%clk 0:02:27.5]} 8. Nc3
{[%clk 0:02:19.2]} 8... Nb6 {[%clk 0:02:24.5]} 9. Bb3 {[%clk 0:02:14.7]} 9...
Bg4 {[%clk 0:02:23.5]} 10. h3 {[%clk 0:02:14.4]} 10... Bh5 {[%clk 0:02:21.5]}
11. Ne4 {[%clk 0:02:12]} 11... Be7 {[%clk 0:02:19.1]} 12. g4 {[%clk 0:02:10.2]}
12... Bg6 {[%clk 0:02:18.5]} 13. h4 {[%clk 0:02:09.6]} 13... h5 {[%clk
0:02:13.3]} 14. Nfg5 {[%clk 0:01:59.7]} 14... hxg4 {[%clk 0:02:01.8]} 15. Qxg4
{[%clk 0:01:54.8]} 15... Nd4 {[%clk 0:01:59.2]} 16. h5 {[%clk 0:01:47.6]} 16...
Bf5 {[%clk 0:01:58.1]} 17. Qg3 {[%clk 0:01:43]} 17... Nxb3 {[%clk 0:01:53.8]}
18. axb3 {[%clk 0:01:40.5]} 18... Nd5 {[%clk 0:01:53.5]} 19. h6 {[%clk
0:01:38.8]} 19... g6 {[%clk 0:01:52.2]} 20. Qxe5 {[%clk 0:01:23.7]} 20... f6
{[%clk 0:01:48.7]} 21. h7+ {[%clk 0:01:21.2]} 21... Kg7 {[%clk 0:01:41.4]} 22.
Ne6+ {[%clk 0:01:06.4]} 22... Kh8 {[%clk 0:01:33.1]} 23. Nxd8 {[%clk 0:00:57.6]}
23... fxe5 {[%clk 0:01:32.7]} 24. Ne6 {[%clk 0:00:57.6]} 24... Bxe6 {[%clk
0:01:30.5]} 0-1

[Event "*** Titled Tuesday Blitz"]
[Site "Chess.com"]
[Date "2021.02.02"]
[Round "9"]
[White "GMaka"]
[Black "sergeikim"]
[Result "1-0"]
[WhiteElo "2428"]
[BlackElo "2495"]
[TimeControl "180+1"]
[EndTime "11:44:27 PST"]
[Termination "GMaka won on time"]

1. c4 {[%clk 0:03:00.9]} 1... e5 {[%clk 0:02:57.8]} 2. g3 {[%clk 0:02:59.4]}
2... Nc6 {[%clk 0:02:57.8]} 3. Bg2 {[%clk 0:02:59.7]} 3... g6 {[%clk 0:02:57.6]}
4. Nc3 {[%clk 0:02:59.4]} 4... Bg7 {[%clk 0:02:57.5]} 5. Rb1 {[%clk 0:03:00.3]}
5... Nge7 {[%clk 0:02:57]} 6. b4 {[%clk 0:03:00.7]} 6... d6 {[%clk 0:02:54.6]}
7. b5 {[%clk 0:03:00.9]} 7... Nd4 {[%clk 0:02:53.7]} 8. e3 {[%clk 0:03:01.3]}
8... Ne6 {[%clk 0:02:53.9]} 9. Nge2 {[%clk 0:03:01]} 9... O-O {[%clk 0:02:42.1]}
10. d4 {[%clk 0:03:00.8]} 10... exd4 {[%clk 0:02:32.5]} 11. exd4 {[%clk
0:03:01.7]} 11... Nf5 {[%clk 0:02:32.5]} 12. Be3 {[%clk 0:02:55.6]} 12... Nxe3
{[%clk 0:02:31.5]} 13. fxe3 {[%clk 0:02:56.5]} 13... Ng5 {[%clk 0:02:31.3]} 14.
h4 {[%clk 0:02:51.3]} 14... Ne6 {[%clk 0:02:30.3]} 15. Qd3 {[%clk 0:02:37.6]}
15... Rb8 {[%clk 0:02:03.4]} 16. a4 {[%clk 0:02:36.4]} 16... Bd7 {[%clk
0:02:02.8]} 17. a5 {[%clk 0:02:36.2]} 17... a6 {[%clk 0:01:54.3]} 18. bxa6
{[%clk 0:02:26.8]} 18... bxa6 {[%clk 0:01:54.2]} 19. O-O {[%clk 0:02:27.1]}
19... c6 {[%clk 0:01:50.4]} 20. Ne4 {[%clk 0:02:27]} 20... Qc7 {[%clk
0:01:34.7]} 21. Qa3 {[%clk 0:02:22.8]} 21... c5 {[%clk 0:01:32.4]} 22. d5 {[%clk
0:02:17.5]} 22... Rxb1 {[%clk 0:01:26]} 23. Rxb1 {[%clk 0:02:18.4]} 23... Nd8
{[%clk 0:01:25.4]} 24. Rb6 {[%clk 0:02:18.2]} 24... Be5 {[%clk 0:01:20.5]} 25.
Rxa6 {[%clk 0:02:13.4]} 25... Bg4 {[%clk 0:01:13.2]} 26. Nf4 {[%clk 0:02:12.5]}
26... Qe7 {[%clk 0:01:04]} 27. Ra8 {[%clk 0:02:04.2]} 27... f5 {[%clk
0:00:50.4]} 28. Ng5 {[%clk 0:02:03.5]} 28... Bf6 {[%clk 0:00:42.6]} 29. a6
{[%clk 0:01:56.7]} 29... Bxg5 {[%clk 0:00:23.9]} 30. hxg5 {[%clk 0:01:57.6]}
30... Qc7 {[%clk 0:00:14.9]} 31. a7 {[%clk 0:01:54.4]} 31... Qb7 {[%clk
0:00:13.8]} 32. Rb8 {[%clk 0:01:53.2]} 1-0

[Event "*** Titled Tuesday Blitz"]
[Site "Chess.com"]
[Date "2021.02.02"]
[Round "9"]
[White "zacachess"]
[Black "HanSchut"]
[Result "1-0"]
[WhiteElo "2437"]
[BlackElo "2278"]
[TimeControl "180+1"]
[EndTime "11:44:29 PST"]
[Termination "zacachess won by resignation"]

1. e4 {[%clk 0:03:00.9]} 1... c5 {[%clk 0:02:59.9]} 2. Nf3 {[%clk 0:03:00.6]}
2... d6 {[%clk 0:02:59.7]} 3. d4 {[%clk 0:03:01.2]} 3... cxd4 {[%clk 0:03:00.2]}
4. Nxd4 {[%clk 0:03:02.1]} 4... Nf6 {[%clk 0:03:00.4]} 5. Nc3 {[%clk 0:03:02.7]}
5... a6 {[%clk 0:03:01]} 6. Bg5 {[%clk 0:03:02.8]} 6... e6 {[%clk 0:03:00.9]} 7.
Qe2 {[%clk 0:03:03.1]} 7... Be7 {[%clk 0:03:00.2]} 8. f4 {[%clk 0:03:01.5]} 8...
Nbd7 {[%clk 0:02:58.6]} 9. O-O-O {[%clk 0:03:01]} 9... Qc7 {[%clk 0:02:54.2]}
10. g4 {[%clk 0:03:00.7]} 10... b5 {[%clk 0:02:43.7]} 11. a3 {[%clk 0:03:00.1]}
11... Bb7 {[%clk 0:02:43]} 12. Bh4 {[%clk 0:02:57.6]} 12... Nxe4 {[%clk
0:02:28.5]} 13. Nxe4 {[%clk 0:02:53.3]} 13... Bxh4 {[%clk 0:02:25]} 14. Nf5
{[%clk 0:02:51.3]} 14... exf5 {[%clk 0:02:04]} 15. Nxd6+ {[%clk 0:02:49.9]}
15... Kf8 {[%clk 0:02:04.2]} 16. Nxb7 {[%clk 0:02:47.2]} 16... Re8 {[%clk
0:01:38.2]} 17. Qf3 {[%clk 0:02:24]} 17... fxg4 {[%clk 0:01:37.8]} 18. Qxg4
{[%clk 0:02:23.9]} 18... Nf6 {[%clk 0:01:22.3]} 19. Qxh4 {[%clk 0:02:18.3]}
19... Qxb7 {[%clk 0:01:22.1]} 20. Rg1 {[%clk 0:02:14.7]} 20... Qe4 {[%clk
0:00:55.6]} 21. Bd3 {[%clk 0:01:53.8]} 21... Qe3+ {[%clk 0:00:32.4]} 22. Kb1
{[%clk 0:01:53.8]} 22... Nd5 {[%clk 0:00:19.7]} 23. Qg5 {[%clk 0:01:45.5]} 23...
Qd4 {[%clk 0:00:12.5]} 24. Bxb5 {[%clk 0:01:36.3]} 24... Nc3+ {[%clk 0:00:10.9]}
25. bxc3 {[%clk 0:01:31.4]} 25... Qb6 {[%clk 0:00:11.3]} 26. Qxg7+ {[%clk
0:01:25.9]} 26... Ke7 {[%clk 0:00:11.7]} 27. Rge1+ {[%clk 0:01:23.4]} 1-0